bitfinex/quotes_BTCUSD_20251102
["timestamp","ask_amount","ask_price","bid_price","bid_amount"]
[1762125001585,0.03080382,110410.0,110400.0,0.93363223]
[1762125002009,0.03080382,110410.0,110400.0,0.93963223]
[1762125003889,0.03080382,110410.0,110400.0,1.08763223]
[1762125004574,0.03080382,110410.0,110400.0,1.22346632]
[1762125004778,0.03080382,110410.0,110400.0,1.24609632]
[1762125004779,0.00280382,110410.0,110400.0,1.24609632]
[1762125005249,0.00280382,110410.0,110400.0,1.2822786]
[1762125012646,0.03080382,110410.0,110400.0,0.54546942]
[1762125012847,0.03080382,110410.0,110400.0,0.53015942]
[1762125013070,0.05339382,110410.0,110400.0,0.53015942]
[1762125013612,0.03080382,110410.0,110400.0,0.20546942]
[1762125013808,0.05339382,110410.0,110400.0,0.52715942]
[1762125014042,0.05339382,110410.0,110400.0,0.18115942]
[1762125014373,0.05339382,110410.0,110400.0,0.52615942]
[1762125015503,0.00280382,110410.0,110400.0,1.07226632]
[1762125015707,0.00280382,110410.0,110400.0,1.09659632]
[1762125015908,0.01908382,110410.0,110400.0,1.07226632]
[1762125018116,0.00280382,110410.0,110400.0,1.09659632]
[1762125019771,0.00280382,110410.0,110400.0,1.07226632]
[1762125020186,0.00280382,110410.0,110400.0,0.52615942]
[1762125020187,0.05540382,110410.0,110400.0,0.52615942]
[1762125022467,0.03046382,110410.0,110400.0,0.54226942]
[1762125023081,0.05540382,110410.0,110400.0,0.52615942]
[1762125024724,0.05540382,110410.0,110400.0,0.54216942]
[1762125024930,0.05540382,110410.0,110400.0,1.05615632]
[1762125025354,0.03046382,110410.0,110400.0,1.07216632]
[1762125025559,0.01795382,110410.0,110400.0,1.07216632]
[1762125025978,0.00280382,110410.0,110400.0,1.07216632]
[1762125026187,0.01795382,110410.0,110400.0,1.07216632]
[1762125026858,0.02925382,110410.0,110400.0,1.07216632]
[1762125027283,0.00280382,110410.0,110400.0,1.09562632]
[1762125028396,0.00280382,110410.0,110400.0,0.56562942]
[1762125028605,0.00280382,110410.0,110400.0,1.09562632]
[1762125029501,0.00280382,110410.0,110400.0,1.1318086]
[1762125030349,0.00280382,110410.0,110400.0,1.2798086]
[1762125030556,0.00280382,110410.0,110400.0,1.2778086]
[1762125030983,0.00280382,110410.0,110400.0,1.2748086]
[1762125031200,0.00280382,110410.0,110400.0,1.2818086]
[1762125032492,0.00280382,110410.0,110400.0,1.2868086]
[1762125044721,0.00039258,110420.0,110410.0,0.74732219]
[1762125044933,0.00039258,110420.0,110410.0,0.79414219]
[1762125045561,0.0002,110430.0,110410.0,1.28214219]
[1762125045789,0.0002,110450.0,110440.0,0.21727608]
[1762125046005,0.00028735,110450.0,110440.0,0.78861298]
[1762125046871,0.00028735,110450.0,110440.0,0.79161298]
[1762125047117,0.00028735,110450.0,110440.0,0.85999892]
[1762125047580,0.00028735,110450.0,110440.0,0.86399892]
[1762125048035,0.02694735,110450.0,110440.0,0.7346707]
[1762125050466,0.02694735,110450.0,110440.0,0.55132445]
[1762125050934,0.00116753,110450.0,110440.0,0.55132445]
[1762125051143,0.00116753,110450.0,110440.0,0.57608445]
[1762125051359,0.01625753,110450.0,110440.0,0.55132445]
[1762125051566,0.00116753,110450.0,110440.0,0.57608445]
[1762125052641,0.04007753,110450.0,110440.0,0.1880938]
[1762125052855,0.00116753,110450.0,110440.0,0.57608445]
[1762125053503,0.00116753,110450.0,110440.0,0.61226673]
[1762125055421,0.00116753,110450.0,110440.0,0.76946539]
[1762125055668,0.00116753,110450.0,110440.0,0.76026673]
[1762125057452,0.00116753,110450.0,110440.0,1.10691738]
[1762125057868,0.00116753,110450.0,110440.0,0.76026673]
[1762125058320,0.0002,110460.0,110450.0,0.55725969]
[1762125058534,0.0002,110460.0,110450.0,1.38429659]
[1762125059421,0.0002,110460.0,110450.0,1.38929659]
[1762125059643,0.0002,110460.0,110450.0,1.39892264]
[1762125060540,0.0002,110460.0,110450.0,1.23493559]
[1762125062039,0.0002,110460.0,110450.0,1.23130954]
[1762125063661,0.0002,110460.0,110450.0,1.37930954]
[1762125064150,0.00041998,110460.0,110450.0,1.37930954]
[1762125066391,0.00041998,110460.0,110450.0,1.24371577]
[1762125067460,1e-08,110460.0,110450.0,1.24371577]
[1762125067911,1e-08,110460.0,110450.0,1.24734182]
[1762125068343,0.00028,110480.0,110470.0,0.95094738]
[1762125068547,0.00028,110480.0,110470.0,1.12215738]
[1762125068753,0.00028,110480.0,110470.0,1.14691738]
[1762125069419,0.00028,110480.0,110470.0,1.12215738]
[1762125069626,0.01637,110480.0,110470.0,1.0859751]
[1762125069834,0.01637,110480.0,110470.0,1.0889751]
[1762125070290,0.04019,110480.0,110470.0,0.67867462]
[1762125070591,0.04019,110480.0,110470.0,0.67204462]
[1762125070634,0.22121824,110480.0,110470.0,0.003]
[1762125070805,0.22121824,110480.0,110470.0,0.18404462]
[1762125071013,0.19739824,110480.0,110470.0,0.18404462]
[1762125071229,0.18230824,110480.0,110470.0,0.18404462]
[1762125071448,0.00128,110480.0,110470.0,0.18404462]
[1762125072095,0.00128,110480.0,110470.0,0.20725462]
[1762125072308,0.00128,110480.0,110470.0,0.6257351]
[1762125073177,0.00128,110480.0,110470.0,0.9657351]
[1762125073828,0.00171987,110480.0,110470.0,0.9657351]
[1762125074510,0.00171987,110480.0,110470.0,0.9409751]
[1762125074718,0.01680987,110480.0,110470.0,0.9409751]
[1762125075349,0.00171987,110480.0,110470.0,0.9409751]
[1762125075572,9.58361689,110500.0,110490.0,0.21719413]
[1762125075814,9.29343459,110500.0,110490.0,0.97280461]
[1762125076013,9.29343459,110500.0,110490.0,1.00999034]
[1762125076430,8.82545776,110500.0,110490.0,1.00999034]
[1762125076890,8.82545776,110500.0,110490.0,0.99999035]
[1762125077321,8.23020267,110500.0,110490.0,1.00999034]
[1762125077526,7.99022858,110500.0,110490.0,1.00999034]
[1762125077739,7.96304538,110500.0,110490.0,1.00299035]
[1762125077955,7.96304538,110500.0,110490.0,1.01799034]
[1762125078196,7.96304538,110500.0,110490.0,0.99999035]
[1762125078410,7.96304538,110500.0,110490.0,1.01499035]
[1762125078818,7.96304538,110500.0,110490.0,0.99999035]
[1762125079020,7.96304538,110500.0,110490.0,1.06647]
[1762125079236,7.96304538,110500.0,110490.0,1.07247]
[1762125080095,7.96304538,110500.0,110490.0,1.05128426]
[1762125080305,7.96304538,110500.0,110490.0,0.98480461]
[1762125080515,7.97929538,110500.0,110490.0,0.98480461]
[1762125080727,7.96304538,110500.0,110490.0,0.97880461]
[1762125080947,7.96304538,110500.0,110490.0,0.97280461]
[1762125081155,7.97929538,110500.0,110490.0,0.54790185]
[1762125081355,7.97973513,110500.0,110490.0,0.55090185]
[1762125082148,7.96348513,110500.0,110490.0,0.55090185]
[1762125082356,7.96348513,110500.0,110490.0,0.94462233]
[1762125082946,7.97973513,110500.0,110490.0,0.94462233]
[1762125083343,7.96348513,110500.0,110490.0,0.94462233]
[1762125083546,7.97973513,110500.0,110490.0,0.94462233]
[1762125083752,7.96348513,110500.0,110490.0,0.94462233]
[1762125084001,7.97973513,110500.0,110490.0,0.34306185]
[1762125084139,8.00361513,110500.0,110490.0,0.34306185]
[1762125084343,8.00361513,110500.0,110490.0,0.156]
[1762125084537,8.00361513,110500.0,110490.0,0.496]
[1762125084772,8.1846106,110500.0,110490.0,0.493]
[1762125085000,8.1876106,110500.0,110490.0,0.34]
[1762125085602,8.00661513,110500.0,110490.0,0.34]
[1762125086283,8.00661513,110500.0,110490.0,0.342]
[1762125086495,8.1876106,110500.0,110490.0,0.342]
[1762125086721,8.1876106,110500.0,110490.0,0.002]
[1762125087129,8.27742961,110500.0,110490.0,0.002]
[1762125087339,8.67115009,110500.0,110490.0,0.002]
[1762125087536,8.58133108,110500.0,110490.0,0.002]
[1762125088174,8.57833108,110500.0,110490.0,0.002]
[1762125089261,0.18103211,110480.0,110460.0,0.19011406]
[1762125089463,0.02853,110470.0,110460.0,0.19011406]
[1762125089707,0.05179,110470.0,110460.0,0.53011406]
[1762125090512,0.05179,110470.0,110460.0,0.53211406]
[1762125092131,0.23283462,110470.0,110460.0,0.342]
[1762125092357,0.05179,110470.0,110460.0,0.52306101]
[1762125092999,0.23283462,110470.0,110460.0,0.342]
[1762125093708,0.6265551,110470.0,110460.0,0.002]
[1762125094566,0.05179,110470.0,110460.0,0.18306101]
[1762125095648,0.25546519,110470.0,110460.0,0.002]
[1762125095856,0.23283462,110470.0,110460.0,0.002]
[1762125096108,0.6265551,110470.0,110460.0,0.002]
[1762125096952,0.44551048,110470.0,110460.0,0.002]
[1762125097155,0.05179,110470.0,110460.0,0.18306101]
[1762125097380,0.24283462,110470.0,110460.0,0.002]
[1762125097594,0.06179,110470.0,110460.0,0.002]
[1762125097810,0.05179,110470.0,110460.0,0.18306101]
[1762125098031,0.05179,110470.0,110460.0,0.002]
[1762125098258,0.23983462,110470.0,110460.0,0.002]
[1762125098471,0.23983462,110470.0,110450.0,0.1810762]
[1762125098688,0.03936,110460.0,110450.0,0.1810762]
[1762125099144,0.22042192,110460.0,110440.0,0.2200367]
[1762125099368,0.05179,110450.0,110440.0,0.56003635]
[1762125099579,0.23286741,110450.0,110440.0,0.02988821]
[1762125099799,0.05179,110450.0,110440.0,0.21098201]
[1762125100087,0.23286741,110450.0,110440.0,0.02988821]
[1762125100525,0.697571,110450.0,110440.0,0.03188821]
[1762125100958,0.695571,110450.0,110440.0,0.03188821]
[1762125101414,0.702571,110450.0,110440.0,0.03188821]
[1762125101614,0.702571,110450.0,110440.0,0.02988821]
[1762125102481,0.05179,110450.0,110440.0,0.21098201]
[1762125102714,0.23286741,110450.0,110440.0,0.02988821]
[1762125102929,0.24286741,110450.0,110440.0,0.02988821]
[1762125103574,0.06179,110450.0,110440.0,0.21098201]
[1762125104009,0.24286741,110450.0,110440.0,0.21098201]
[1762125104222,0.06179,110450.0,110440.0,0.21098201]
[1762125108264,0.06179,110450.0,110440.0,0.21198201]
[1762125108529,0.05179,110450.0,110440.0,0.21198201]
[1762125108656,0.05679,110450.0,110440.0,0.21198201]
[1762125111203,0.05679,110450.0,110440.0,0.94570249]
[1762125111204,0.03353,110450.0,110440.0,0.94570249]
[1762125111640,0.03353,110450.0,110440.0,0.55198201]
[1762125112062,0.02853,110450.0,110440.0,0.55098201]
[1762125112285,0.01243,110450.0,110440.0,1.12888477]
[1762125112509,0.02496,110460.0,110450.0,0.18107741]
[1762125112731,0.03739,110470.0,110460.0,0.18106101]
[1762125112940,0.01243,110470.0,110460.0,0.18106101]
[1762125113144,0.01511,110460.0,110450.0,0.18107741]
[1762125113587,0.04007,110460.0,110450.0,0.18107741]
[1762125114660,0.04207,110460.0,110450.0,0.57479789]
[1762125115099,0.04207,110460.0,110450.0,0.57679789]
[1762125115388,0.01711,110460.0,110450.0,0.57679789]
[1762125117288,0.04207,110460.0,110450.0,0.18307741]
[1762125120511,0.22313101,110460.0,110450.0,0.002]
[1762125121376,0.04207,110460.0,110450.0,0.002]
[1762125121617,0.22313101,110460.0,110450.0,0.002]
[1762125121860,0.31295002,110460.0,110450.0,0.002]
[1762125122281,0.22313101,110460.0,110450.0,0.002]
[1762125123176,0.18107741,110450.0,110440.0,0.02988821]
[1762125123387,0.23301741,110450.0,110440.0,0.02988821]
[1762125124670,0.23701741,110450.0,110440.0,0.03088821]
[1762125126140,0.23701741,110450.0,110440.0,0.02988821]
[1762125126558,0.05194,110450.0,110440.0,0.02988821]
[1762125126773,0.05194,110450.0,110440.0,0.21098201]
[1762125126985,0.23301741,110450.0,110440.0,0.02988821]
[1762125127197,0.24201741,110450.0,110440.0,0.02988821]
[1762125127896,0.23301741,110450.0,110440.0,0.02988821]
[1762125128110,0.23901741,110450.0,110440.0,0.02988821]
[1762125131166,0.32109301,110450.0,110440.0,0.02988821]
[1762125132673,0.32109301,110450.0,110440.0,0.21098201]
[1762125132894,0.1400156,110450.0,110440.0,0.21098201]
[1762125133330,0.05794,110450.0,110440.0,0.21098201]
[1762125134462,0.23901741,110450.0,110440.0,0.21098201]
[1762125135340,0.05794,110450.0,110440.0,0.21098201]
[1762125136437,0.05794,110450.0,110440.0,0.02988821]
[1762125136665,0.23901741,110450.0,110440.0,0.21098201]
[1762125137557,0.05794,110450.0,110440.0,0.21098201]
[1762125137979,0.23901741,110450.0,110440.0,0.21098201]
[1762125139875,0.05794,110450.0,110440.0,0.21098201]
[1762125143059,0.23901741,110450.0,110440.0,0.02988821]
[1762125143291,0.81905157,110450.0,110440.0,0.02988821]
[1762125144136,0.23901741,110450.0,110440.0,0.02988821]
[1762125145393,0.23901741,110450.0,110440.0,0.21098201]
[1762125145606,0.05794,110450.0,110440.0,0.21098201]
[1762125145864,0.23901741,110450.0,110440.0,0.02988821]
[1762125146074,0.05794,110450.0,110440.0,0.21098201]
[1762125146299,0.23901741,110450.0,110440.0,0.21098201]
[1762125146714,0.05794,110450.0,110440.0,0.21098201]
[1762125147184,0.09004766,110450.0,110440.0,0.02988821]
[1762125147397,0.80094374,110450.0,110440.0,0.02988821]
[1762125147608,0.27112507,110450.0,110440.0,0.02988821]
[1762125147818,0.2585691,110450.0,110440.0,0.02988821]
[1762125148032,0.23901741,110450.0,110440.0,0.02988821]
[1762125148692,0.25857187,110450.0,110440.0,0.02988821]
[1762125149319,0.23901741,110450.0,110440.0,0.02988821]
[1762125149527,0.25857635,110450.0,110440.0,0.02988821]
[1762125150392,0.23901741,110450.0,110440.0,0.21098201]
[1762125150594,0.23901741,110450.0,110440.0,0.02988821]
[1762125151449,0.23901741,110450.0,110440.0,0.21098201]
[1762125151653,0.05794,110450.0,110440.0,0.21098201]
[1762125151856,0.23901741,110450.0,110440.0,0.21098201]
[1762125152274,0.23901741,110450.0,110440.0,0.02988821]
[1762125153430,0.23901741,110450.0,110440.0,0.21098201]
[1762125153678,0.05794,110450.0,110440.0,0.21098201]
[1762125154488,0.23901741,110450.0,110440.0,0.21098201]
[1762125154933,0.23901741,110450.0,110440.0,0.02988821]
[1762125157866,0.23901741,110450.0,110440.0,0.21098201]
[1762125158046,0.23901741,110450.0,110440.0,0.02988821]
[1762125158411,0.23901741,110450.0,110440.0,0.21098201]
[1762125159025,0.05794,110450.0,110440.0,0.21098201]
[1762125159440,0.03298,110450.0,110440.0,0.74080068]
[1762125159646,0.03298,110450.0,110440.0,1.08080068]
[1762125159851,0.02698,110450.0,110440.0,1.08080068]
[1762125160157,0.05156,110450.0,110440.0,1.08080068]
[1762125160282,0.05556,110450.0,110440.0,0.55198201]
[1762125160690,0.05156,110450.0,110440.0,0.55098201]
[1762125160889,0.05156,110450.0,110440.0,0.55298201]
[1762125161124,0.05256,110450.0,110440.0,0.55298201]
[1762125162302,0.23363741,110450.0,110440.0,0.03188821]
[1762125168972,0.05256,110450.0,110440.0,0.03188821]
[1762125169189,0.05256,110450.0,110440.0,0.21298201]
[1762125170282,0.05256,110450.0,110440.0,0.21292101]
[1762125170949,0.23363741,110450.0,110440.0,0.03182721]
[1762125172547,0.05256,110450.0,110440.0,0.21292101]
[1762125174110,0.02798,110450.0,110440.0,0.74273968]
[1762125174336,0.02798,110450.0,110440.0,0.21292101]
[1762125177345,0.001,110450.0,110440.0,1.11892196]
[1762125177734,0.001,110450.0,110440.0,1.14612382]
[1762125178657,0.03595,110470.0,110440.0,1.14612382]
[1762125178658,0.03595,110470.0,110460.0,0.18106101]
[1762125179091,0.05212,110470.0,110460.0,0.18106101]
[1762125179695,0.05212,110470.0,110460.0,0.53916711]
[1762125179696,0.05612,110470.0,110460.0,0.53916711]
[1762125179898,0.05612,110470.0,110460.0,0.52206101]
[1762125184822,0.01643,110470.0,110460.0,0.52206101]
[1762125184994,0.0326,110470.0,110460.0,0.52206101]
[1762125185190,0.0326,110470.0,110460.0,1.05187968]
[1762125185408,0.03616989,110490.0,110470.0,0.52104462]
[1762125185647,0.01273714,110490.0,110480.0,0.53913106]
[1762125185845,0.02890714,110490.0,110480.0,0.52102824]
[1762125186055,0.02890714,110490.0,110480.0,1.05084691]
[1762125186258,0.02890714,110490.0,110480.0,1.08702919]
[1762125186259,0.00030714,110490.0,110480.0,1.08702919]
[1762125186705,0.00030714,110490.0,110480.0,1.11422099]
[1762125187224,0.00030714,110490.0,110480.0,1.11622099]
[1762125187443,0.00430714,110490.0,110480.0,1.11622099]
[1762125188122,0.00030714,110490.0,110480.0,1.11622099]
[1762125188341,0.00030714,110490.0,110480.0,1.11422099]
[1762125188547,0.00030714,110490.0,110480.0,0.97797204]
[1762125188755,0.00030714,110490.0,110480.0,0.98397204]
[1762125189370,0.00030714,110490.0,110480.0,0.94701553]
[1762125189588,0.00030714,110490.0,110480.0,1.37676753]
[1762125190025,0.00030714,110490.0,110480.0,1.44507435]
[1762125190252,0.00030714,110490.0,110480.0,1.05150463]
[1762125190784,0.00030714,110490.0,110480.0,1.44507435]
[1762125192799,7.42178405,110500.0,110490.0,0.18101185]
[1762125193015,7.1915936,110500.0,110490.0,1.07094061]
[1762125193219,6.9872972,110500.0,110490.0,1.07643858]
[1762125193437,6.71214803,110500.0,110490.0,1.07643858]
[1762125193647,6.68497026,110500.0,110490.0,1.05283943]
[1762125193854,6.65779249,110500.0,110490.0,1.05283943]
[1762125194061,6.63061472,110500.0,110490.0,1.05583944]
[1762125194272,6.60343695,110500.0,110490.0,1.05583944]
[1762125194472,6.15967164,110500.0,110490.0,1.05583944]
[1762125194693,5.79479203,110500.0,110490.0,1.04283944]
[1762125194890,5.76761426,110500.0,110490.0,1.04283944]
[1762125195117,5.58570926,110500.0,110490.0,1.05083944]
[1762125195339,5.16591417,110500.0,110490.0,1.05983944]
[1762125195562,5.01438026,110500.0,110490.0,1.05083944]
[1762125195791,4.79491198,110500.0,110490.0,1.06083943]
[1762125196031,4.65411237,110500.0,110490.0,1.06883943]
[1762125196258,4.62694338,110500.0,110490.0,1.05283943]
[1762125196491,4.62694338,110500.0,110490.0,1.06183943]
[1762125196492,4.59977439,110500.0,110490.0,1.06183943]
[1762125196701,4.59977439,110500.0,110490.0,1.07083943]
[1762125197133,4.59977439,110500.0,110490.0,1.0890218]
[1762125197352,4.59977439,110500.0,110490.0,1.2370218]
[1762125197579,4.59977439,110500.0,110490.0,1.2480218]
[1762125198005,4.14469891,110500.0,110490.0,1.89069152]
[1762125198210,4.11752992,110500.0,110490.0,1.89069152]
[1762125198434,4.09036093,110500.0,110490.0,1.4971218]
[1762125198651,3.63092201,110500.0,110490.0,1.4971218]
[1762125198858,3.22535365,110500.0,110490.0,1.4971218]
[1762125199187,3.08245382,110500.0,110490.0,1.52482715]
[1762125199389,2.83622797,110500.0,110490.0,1.52482715]
[1762125199608,2.80906206,110500.0,110490.0,1.52482715]
[1762125199818,2.78189615,110500.0,110490.0,1.52482715]
[1762125200011,2.75473024,110500.0,110490.0,1.52482715]
[1762125200153,2.72756433,110500.0,110490.0,1.4971218]
[1762125200757,2.72756433,110500.0,110490.0,1.23802181]
[1762125201169,2.72756433,110500.0,110490.0,1.22902181]
[1762125201375,2.72756433,110500.0,110490.0,1.2390218]
[1762125201615,2.72756433,110500.0,110490.0,1.2450218]
[1762125202019,2.31637371,110500.0,110490.0,1.2450218]
[1762125202229,2.31637371,110500.0,110490.0,1.2340218]
[1762125202430,2.31637371,110500.0,110490.0,4.2340218]
[1762125202560,2.31637371,110500.0,110490.0,4.2410218]
[1762125204014,2.31637371,110500.0,110490.0,4.23102181]
[1762125204217,2.31637371,110500.0,110490.0,3.46656982]
[1762125204419,2.31637371,110500.0,110490.0,3.86013954]
[1762125204686,2.31637371,110500.0,110490.0,3.71213954]
[1762125204914,2.31637371,110500.0,110490.0,0.71213954]
[1762125205083,2.31637371,110500.0,110490.0,1.05213954]
[1762125205376,2.31637371,110500.0,110490.0,0.73532182]
[1762125205667,2.31637371,110500.0,110490.0,1.08432182]
[1762125206475,2.34370371,110500.0,110490.0,0.47355797]
[1762125206844,2.34370371,110500.0,110490.0,0.65456982]
[1762125206975,2.34370371,110500.0,110490.0,0.47355797]
[1762125207221,2.31637371,110500.0,110490.0,0.57249422]
[1762125208022,2.31637371,110500.0,110490.0,0.96106394]
[1762125208255,2.31637371,110500.0,110490.0,0.96471394]
[1762125208465,2.31637371,110500.0,110490.0,0.96871394]
[1762125208692,2.31637371,110500.0,110490.0,0.96971394]
[1762125209533,2.31637371,110500.0,110490.0,0.96206394]
[1762125210450,2.31637371,110500.0,110490.0,0.96971394]
[1762125212967,2.38591371,110500.0,110490.0,0.37983237]
[1762125213858,2.38591371,110500.0,110490.0,0.35265]
[1762125214079,2.34370371,110500.0,110490.0,0.54131185]
[1762125214302,2.34370371,110500.0,110490.0,0.3603]
[1762125214525,2.34370371,110500.0,110490.0,0.35265]
[1762125214752,2.34370371,110500.0,110490.0,0.3603]
[1762125215183,2.34370371,110500.0,110490.0,0.54131185]
[1762125216523,2.31637371,110500.0,110490.0,0.93488157]
[1762125217160,2.34370371,110500.0,110490.0,0.93488157]
[1762125217617,2.34370371,110500.0,110490.0,0.97871385]
[1762125217618,2.31637371,110500.0,110490.0,0.97871385]
[1762125217838,2.31637371,110500.0,110490.0,1.00590183]
[1762125218046,2.38591371,110500.0,110490.0,0.9137577]
[1762125218249,2.31637371,110500.0,110490.0,0.9290577]
[1762125218458,2.34370371,110500.0,110490.0,0.89421972]
[1762125218675,2.34370371,110500.0,110490.0,0.92140999]
[1762125218859,2.34370371,110500.0,110490.0,0.89321972]
[1762125219061,2.34370371,110500.0,110490.0,0.88556972]
[1762125219062,2.38791371,110500.0,110490.0,0.88556972]
[1762125219372,2.34570371,110500.0,110490.0,1.07423157]
[1762125219574,2.31837371,110500.0,110490.0,1.07423157]
[1762125220329,2.31637371,110500.0,110490.0,0.92623157]
[1762125220618,2.31637371,110500.0,110490.0,1.11806385]
[1762125220863,2.31637371,110500.0,110490.0,1.11906385]
[1762125221221,2.31637371,110500.0,110490.0,4.11906385]
[1762125221422,2.31637371,110500.0,110490.0,4.11806385]
[1762125221950,2.31637371,110500.0,110490.0,4.12306385]
[1762125224377,2.31637371,110500.0,110490.0,4.15025008]
[1762125226800,2.31637371,110500.0,110490.0,4.21814983]
[1762125227958,2.31637371,110500.0,110490.0,4.15025008]
[1762125230519,2.31637371,110500.0,110490.0,4.21661422]
[1762125233249,2.31637371,110500.0,110490.0,4.21261422]
[1762125233415,2.31637371,110500.0,110490.0,4.22261422]
[1762125233611,2.31637371,110500.0,110490.0,4.22268522]
[1762125234059,2.31637371,110500.0,110490.0,4.21768522]
[1762125234422,2.31637371,110500.0,110490.0,4.22568522]
[1762125235773,2.31637371,110500.0,110490.0,4.23568521]
[1762125236176,2.31637371,110500.0,110490.0,4.2456852]
[1762125236448,2.31637371,110500.0,110490.0,4.54440714]
[1762125238424,2.31637371,110500.0,110490.0,4.24548966]
[1762125241472,1.70825371,110500.0,110490.0,4.49458966]
[1762125241674,1.52053618,110500.0,110490.0,4.09748966]
[1762125241875,1.52053618,110500.0,110490.0,4.24548966]
[1762125243555,1.52053618,110500.0,110490.0,4.23548967]
[1762125243760,1.52053618,110500.0,110490.0,4.24548966]
[1762125247034,1.52053618,110500.0,110490.0,4.09748966]
[1762125250151,1.05899143,110500.0,110490.0,4.24548966]
[1762125250540,1.05899143,110500.0,110490.0,4.38095488]
[1762125251186,0.32822974,110500.0,110490.0,4.76571488]
[1762125251378,0.22664325,110500.0,110490.0,4.78912599]
[1762125251596,0.19947672,110500.0,110490.0,4.78912599]
[1762125251805,0.17231019,110500.0,110490.0,4.78912599]
[1762125252007,0.14514366,110500.0,110490.0,4.78912599]
[1762125252135,0.11797713,110500.0,110490.0,4.69668131]
[1762125252341,0.0908106,110500.0,110490.0,4.69668131]
[1762125252579,0.0002,110510.0,110500.0,3.57717773]
[1762125252743,0.0002,110510.0,110500.0,4.51087713]
[1762125253153,0.0002,110510.0,110500.0,4.51570591]
[1762125254129,0.0002,110510.0,110500.0,4.52170591]
[1762125254342,0.0002,110510.0,110500.0,4.54813234]
[1762125254533,0.0002,110510.0,110500.0,4.52170591]
[1762125255027,0.0002,110510.0,110500.0,4.51170592]
[1762125255252,0.0002,110510.0,110500.0,4.53070591]
[1762125255856,0.0002,110510.0,110500.0,4.51570591]
[1762125256053,0.0002,110510.0,110500.0,4.27260591]
[1762125256395,0.0002,110510.0,110500.0,4.28360591]
[1762125256942,0.0002,110510.0,110500.0,4.27260591]
[1762125257339,0.0013,110550.0,110520.0,3.20236272]
[1762125257541,0.02214,110580.0,110570.0,0.21706316]
[1762125257542,0.0002,110580.0,110570.0,0.21706316]
[1762125257779,0.0002,110580.0,110570.0,0.24255316]
[1762125257780,0.00028722,110580.0,110570.0,0.24255316]
[1762125257930,0.00028722,110580.0,110570.0,0.26217316]
[1762125258392,0.00028722,110580.0,110570.0,4.15101254]
[1762125258393,0.00204478,110580.0,110570.0,4.15101254]
[1762125258607,0.00204478,110580.0,110570.0,3.60217316]
[1762125259044,0.00204478,110580.0,110570.0,4.13101256]
[1762125259281,0.00204478,110580.0,110570.0,4.15101254]
[1762125259469,0.0002,110610.0,110600.0,0.2170141]
[1762125259689,0.03221714,110610.0,110600.0,0.03618228]
[1762125259879,0.0328758,110610.0,110600.0,0.03618228]
[1762125260079,0.0328758,110610.0,110600.0,0.05580228]
[1762125260381,0.0328758,110610.0,110600.0,0.01962]
[1762125260582,0.0328758,110610.0,110600.0,0.34]
[1762125260969,0.26243127,110610.0,110600.0,0.34]
[1762125261720,0.0816158,110610.0,110590.0,0.03618228]
[1762125261921,0.03193,110600.0,110590.0,0.07388709]
[1762125262854,0.08067,110600.0,110590.0,0.05426709]
[1762125263273,0.26150182,110600.0,110590.0,0.34]
[1762125263866,0.08067,110600.0,110590.0,0.34]
[1762125264173,0.26150182,110600.0,110590.0,0.34]
[1762125264594,0.26150182,110600.0,110570.0,0.34587]
[1762125264851,0.0516,110580.0,110570.0,0.53005228]
[1762125265046,0.0516,110580.0,110570.0,0.34587]
[1762125265177,0.10107,110580.0,110560.0,3.0]
[1762125265382,0.02491,110570.0,110560.0,3.0]
[1762125265586,0.05756,110570.0,110560.0,0.01748]
[1762125266024,0.05756,110570.0,110560.0,0.35748]
[1762125266341,0.10703,110570.0,110560.0,0.34]
[1762125266570,0.10703,110570.0,110560.0,0.34008722]
[1762125266794,0.10703,110570.0,110560.0,0.00408722]
[1762125267490,0.10703,110570.0,110560.0,0.18498447]
[1762125267686,0.05756,110570.0,110560.0,0.20246447]
[1762125268775,0.05756,110570.0,110560.0,0.02156722]
[1762125269279,0.057489,110570.0,110560.0,0.02156722]
[1762125269396,0.057489,110570.0,110560.0,0.00408722]
[1762125269595,0.106959,110570.0,110560.0,0.00408722]
[1762125270257,0.28783988,110570.0,110560.0,0.00408722]
[1762125271006,0.106959,110570.0,110560.0,0.00408722]
[1762125271935,0.106959,110570.0,110560.0,8.722e-05]
[1762125272190,0.106959,110570.0,110560.0,0.00108722]
[1762125272743,0.112959,110570.0,110560.0,0.00108722]
[1762125273609,0.29383988,110570.0,110560.0,0.00108722]
[1762125274284,0.1082996,110570.0,110560.0,0.00108722]
[1762125274509,0.0588296,110570.0,110560.0,0.02329722]
[1762125274742,0.006,110570.0,110560.0,0.22640447]
[1762125275384,0.006,110570.0,110560.0,0.26258675]
[1762125275590,0.006,110570.0,110560.0,0.79142615]
[1762125276521,0.006,110570.0,110560.0,1.13142615]
[1762125276729,0.006,110570.0,110560.0,4.13142615]
[1762125277862,0.006,110570.0,110560.0,3.60258675]
[1762125278098,0.006,110570.0,110560.0,4.13142615]
[1762125279039,0.00021959,110590.0,110580.0,0.21704681]
[1762125279283,0.00021959,110590.0,110580.0,0.77655621]
[1762125279530,0.00021959,110590.0,110580.0,0.26992681]
[1762125280225,0.00621959,110590.0,110580.0,0.26992681]
[1762125283366,0.00621959,110590.0,110580.0,0.08906228]
[1762125283634,0.00621959,110590.0,110580.0,0.06685228]
[1762125283976,0.00621959,110590.0,110580.0,0.24771681]
[1762125284191,0.00621959,110590.0,110580.0,0.26992681]
[1762125284670,0.00621959,110590.0,110580.0,0.06685228]
[1762125284901,0.05903959,110590.0,110580.0,0.00846]
[1762125285133,0.10788959,110590.0,110580.0,0.00846]
[1762125285334,0.05903959,110590.0,110580.0,0.02645]
[1762125287451,0.05903959,110590.0,110580.0,0.00846]
[1762125287653,0.10788959,110590.0,110580.0,0.00846]
[1762125287855,0.02944959,110590.0,110580.0,0.20731453]
[1762125288098,0.05903959,110590.0,110580.0,0.20731453]
[1762125288512,0.00621959,110590.0,110580.0,0.20731453]
[1762125288810,0.00621959,110590.0,110580.0,0.02645]
[1762125288955,0.03580959,110590.0,110580.0,0.02645]
[1762125289156,0.28873776,110590.0,110570.0,0.488]
[1762125289380,0.02959,110580.0,110570.0,3.0]
[1762125289580,0.07844,110580.0,110570.0,3.0]
[1762125290188,0.02959,110580.0,110570.0,0.35799]
[1762125291137,0.02959,110580.0,110570.0,0.53987088]
[1762125291451,0.03559,110580.0,110570.0,0.35899]
[1762125293143,0.03559,110580.0,110570.0,0.53987088]
[1762125293346,0.03559,110580.0,110570.0,0.35899]
[1762125293811,0.21645453,110580.0,110570.0,0.341]
[1762125294092,0.26530453,110580.0,110570.0,0.341]
[1762125295456,0.08444,110580.0,110570.0,0.341]
[1762125295771,0.26530453,110580.0,110570.0,0.341]